bitfinex/quotes_ETHUSD_20250430
["timestamp","ask_amount","ask_price","bid_price","bid_amount"]
[1746002881681,6.15,1799.7,1799.4,0.05815101]
[1746002882481,6.15,1799.7,1799.4,4.63315101]
[1746002882663,7.56154602,1799.7,1799.4,4.60085101]
[1746002883456,0.06946642,1799.6,1799.4,4.60085101]
[1746002883699,7.56154602,1799.7,1799.4,4.60085101]
[1746002883842,0.3125709,1799.5,1799.4,4.60085101]
[1746002888779,6.9396,1799.7,1799.4,4.60085101]
[1746002888938,0.31256271,1799.6,1799.4,4.60085101]
[1746002890054,0.31256271,1799.5,1799.4,4.60085101]
[1746002893556,1.14136271,1799.5,1799.4,4.60085101]
[1746002895381,1.14136271,1799.5,1799.4,0.02585101]
[1746002899090,7.29136271,1799.5,1799.4,0.02585101]
[1746002899296,8.58315011,1799.5,1799.4,0.02585101]
[1746002899497,8.65262851,1799.5,1799.4,0.02585101]
[1746002900792,18.92328825,1799.5,1799.4,0.02585101]
[1746002900992,18.85380985,1799.5,1799.4,0.02585101]
[1746002901593,13.29671066,1799.5,1799.4,0.02585101]
[1746002901801,11.58315011,1799.5,1799.4,0.02585101]
[1746002902274,6.46256271,1799.5,1799.4,0.02585101]
[1746002909983,0.31256271,1799.5,1799.4,0.02585101]
[1746002910168,0.31256271,1799.5,1799.4,0.05815101]
[1746002912808,0.83267323,1799.5,1799.4,0.05815101]
[1746002914292,0.83267323,1799.5,1799.4,4.63215101]
[1746002914476,0.83267323,1799.5,1799.4,5.09536611]
[1746002915906,0.52011052,1799.5,1799.4,5.09536611]
[1746002916107,6.15,1799.7,1799.4,5.09536611]
[1746002918008,0.83215104,1799.6,1799.4,5.09536611]
[1746002918218,0.5200944,1799.5,1799.4,5.09536611]
[1746002918595,0.83215104,1799.5,1799.4,5.09536611]
[1746002921098,0.5200944,1799.5,1799.4,5.09536611]
[1746002921416,6.15,1799.7,1799.4,5.09536611]
[1746002921749,0.83215734,1799.6,1799.4,5.09536611]
[1746002921923,0.83215734,1799.6,1799.5,0.50953661]
[1746002922091,0.312059,1799.6,1799.5,0.50953661]
[1746002922428,0.83214462,1799.6,1799.5,0.50953661]
[1746002926289,0.83214462,1799.6,1799.4,4.63215101]
[1746002927027,0.52008562,1799.5,1799.4,4.63215101]
[1746002930103,0.52008562,1799.5,1799.4,4.59985101]
[1746002931428,0.83224486,1799.5,1799.4,4.59985101]
[1746002937799,6.951,1799.7,1799.4,4.59985101]
[1746002938096,0.83329518,1799.6,1799.4,4.59985101]
[1746002938610,0.52080949,1799.5,1799.4,4.59985101]
[1746002939027,0.83329518,1799.5,1799.4,4.59985101]
[1746002939906,1.64559518,1799.5,1799.4,4.59985101]
[1746002943338,0.83329518,1799.5,1799.4,4.59985101]
[1746002943523,6.15,1799.7,1799.4,5.05983611]
[1746002943728,6.15,1799.7,1799.4,4.59985101]
[1746002943928,0.31268766,1799.6,1799.4,4.59985101]
[1746002944119,0.83383652,1799.6,1799.4,4.59985101]
[1746002944522,0.83383652,1799.5,1799.4,4.59985101]
[1746002944921,0.83383652,1799.5,1799.4,4.574]
[1746002946039,0.83383652,1799.5,1799.4,6.96299546]
[1746002947321,0.52114886,1799.5,1799.4,6.96299546]
[1746002947627,0.52114886,1799.5,1799.4,7.45212152]
[1746002948021,0.52114886,1799.5,1799.4,5.15699959]
[1746002948224,0.52114886,1799.5,1799.4,4.574]
[1746002949229,6.941,1799.7,1799.4,4.574]
[1746002949659,0.83364211,1799.6,1799.4,4.574]
[1746002950131,0.52102838,1799.5,1799.4,4.574]
[1746002950761,0.83364211,1799.5,1799.4,4.574]
[1746002951444,0.83364211,1799.5,1799.4,5.6137]
[1746002953260,0.52102838,1799.5,1799.4,5.6137]
[1746002955437,0.52102838,1799.5,1799.4,4.574]
[1746002955661,0.833561,1799.5,1799.4,4.574]
[1746002956266,0.52102838,1799.5,1799.4,4.574]
[1746002956431,0.7591,1799.7,1799.4,4.574]
[1746002957565,0.8333919,1799.6,1799.4,4.574]
[1746002958144,0.52086994,1799.5,1799.4,4.574]
[1746002958667,0.8333919,1799.5,1799.4,4.574]
[1746002960469,0.31252196,1799.5,1799.4,4.574]
[1746002960649,0.7591,1799.7,1799.4,4.574]
[1746002962541,0.83334862,1799.6,1799.4,4.574]
[1746002963062,0.52084289,1799.5,1799.4,4.574]
[1746002963288,0.83334862,1799.5,1799.4,4.574]
[1746002965981,0.7649,1799.4,1799.3,0.02585101]
[1746002966293,7.86100706,1799.4,1799.3,0.02585101]
[1746002966439,14.0087368,1799.4,1799.3,0.02585101]
[1746002966639,8.38184995,1799.4,1799.3,0.02585101]
[1746002966856,8.4513316,1799.4,1799.3,0.02585101]
[1746002967061,8.76383733,1799.4,1799.3,0.02585101]
[1746002970394,17.32124535,1799.4,1799.3,0.02585101]
[1746002970699,17.2517637,1799.4,1799.3,0.02585101]
[1746002971202,11.69435568,1799.4,1799.3,0.02585101]
[1746002972211,10.86100706,1799.4,1799.3,0.02585101]
[1746002972404,10.93048804,1799.4,1799.3,0.02585101]
[1746002972591,11.76185444,1799.4,1799.3,0.02585101]
[1746002972794,11.69237346,1799.4,1799.3,0.02585101]
[1746002974976,11.69237346,1799.4,1799.1,4.52183001]
[1746002975414,0.519604,1799.3,1799.1,4.52183001]
[1746002975905,0.3117624,1799.2,1799.1,4.52183001]
[1746002976079,0.8313664,1799.2,1799.1,4.52183001]
[1746002977493,0.519604,1799.2,1799.1,4.52183001]
[1746002977812,10.86100706,1799.4,1799.1,4.52183001]
[1746002978023,1.08610071,1799.3,1799.1,4.52183001]
[1746002978242,1.91689428,1799.3,1799.1,4.52183001]
[1746002978755,0.51924598,1799.2,1799.1,4.52183001]
[1746002979049,0.83079357,1799.2,1799.1,4.52183001]
[1746002979398,0.31154759,1799.2,1799.1,4.52183001]
[1746002979654,9.9149,1799.4,1799.1,4.52183001]
[1746002980151,9.15,1799.4,1799.1,4.52183001]
[1746002980497,0.83065923,1799.3,1799.1,4.52183001]
[1746002981139,0.51916137,1799.3,1799.1,4.97724301]
[1746002981445,0.51916137,1799.2,1799.1,4.97724301]
[1746002981747,0.51916137,1799.3,1799.1,4.97724301]
[1746002983850,6.15,1799.4,1799.1,4.97724301]
[1746002985014,0.51951782,1799.3,1799.1,4.97724301]
[1746002985219,0.51951782,1799.3,1799.2,0.4977243]
[1746002987351,0.51951782,1799.3,1799.2,0.5300243]
[1746002987654,0.51951782,1799.3,1799.2,1.0800243]
[1746002987852,6.15,1799.4,1799.2,1.0800243]
[1746002991372,0.51983193,1799.3,1799.1,4.52183001]
[1746002992026,6.15,1799.4,1799.1,4.52183001]
[1746002992756,0.51994069,1799.3,1799.1,4.52183001]
[1746002993257,6.15,1799.4,1799.1,4.52183001]
[1746002994558,0.52007902,1799.3,1799.1,4.52183001]
[1746002994757,0.52007902,1799.3,1799.2,0.452183]
[1746002994947,0.52007902,1799.3,1799.1,4.52183001]
[1746002995256,6.15,1799.4,1799.1,4.52183001]
[1746002996059,0.52016113,1799.3,1799.1,4.52183001]
[1746002996459,6.15,1799.4,1799.1,4.52183001]
[1746002996855,1.1153202,1799.3,1799.1,4.52183001]
[1746002997251,0.52019952,1799.2,1799.1,4.52183001]
[1746002997581,0.83231972,1799.2,1799.1,4.52183001]
[1746003000478,0.83231972,1799.2,1799.1,4.97724301]
[1746003000850,0.83231972,1799.2,1799.1,5.52724301]
[1746003001047,0.3121202,1799.2,1799.1,7.27236494]
[1746003001253,6.15,1799.4,1799.2,0.55]
[1746003002278,0.52017897,1799.3,1799.2,0.55]
[1746003002587,0.52017897,1799.3,1799.2,1.27723649]
[1746003004688,0.52017897,1799.3,1799.2,1.30953649]
[1746003004896,0.52017897,1799.3,1799.2,4.30953649]
[1746003005206,0.8087,1800.1,1799.5,0.0323]
[1746003005376,0.8087,1800.1,1799.7,0.5823]
[1746003005884,0.8087,1800.1,1799.7,1.09753]
[1746003006081,6.15,1800.2,1799.9,0.55]
[1746003006281,0.7906,1800.3,1799.9,0.55]
[1746003006282,6.15,1800.3,1800.1,0.0323]
[1746003007514,0.83190336,1800.2,1800.1,0.5823]
[1746003008125,0.31195984,1800.2,1800.1,0.5823]
[1746003008278,0.83189297,1800.2,1800.1,1.09753]
[1746003008480,0.83197481,1800.2,1800.1,1.09753]
[1746003008818,0.31195984,1800.2,1800.1,1.09753]
[1746003008994,0.8319617,1800.2,1800.1,1.09753]
[1746003009317,6.15,1800.3,1800.1,1.09753]
[1746003009523,0.51999805,1800.2,1800.1,1.09753]
[1746003009684,6.15,1800.3,1800.1,1.51007835]
[1746003009885,0.51999942,1800.2,1800.1,1.51007835]
[1746003010109,6.15,1800.3,1800.1,1.51007835]
[1746003010508,0.7616,1800.5,1800.1,1.51007835]
[1746003010718,0.83208808,1800.4,1800.1,1.51007835]
[1746003010917,0.52005511,1800.3,1800.1,1.51007835]
[1746003011118,0.7616,1800.5,1800.1,1.51007835]
[1746003011318,0.52005522,1800.2,1800.1,1.51007835]
[1746003011519,0.52005522,1800.2,1799.6,23.90976653]
[1746003011520,0.7622,1800.0,1798.9,5.97462987]
[1746003011718,0.7622,1799.2,1798.9,6.24695631]
[1746003012021,3.7622,1799.2,1798.9,5.97462987]
[1746003012518,3.7622,1799.2,1798.9,10.54262987]
[1746003012924,0.52041034,1799.1,1798.9,10.54262987]
[1746003013301,4.31665074,1799.2,1798.9,10.54262987]
[1746003013502,0.52038856,1799.1,1798.9,10.54262987]
[1746003013831,0.52042357,1799.0,1798.9,10.54262987]
[1746003014117,0.83268307,1799.0,1798.9,10.54262987]
[1746003014292,0.83267434,1799.0,1798.9,10.54262987]
[1746003014487,0.83265961,1799.0,1798.9,4.568]
[1746003014724,0.31224738,1799.0,1798.9,4.568]
[1746003015019,0.83269237,1799.0,1798.9,4.568]
[1746003015427,4.38613566,1799.2,1798.9,4.568]
[1746003015596,0.83261684,1799.0,1798.9,4.568]
[1746003015923,0.8033,1798.3,1797.4,5.97462987]
[1746003016221,0.8314,1797.5,1797.4,5.97462987]
[1746003016423,1.14387362,1797.5,1797.4,5.97462987]
[1746003016592,1.6646937,1797.5,1797.4,5.97462987]
[1746003016790,0.52082008,1797.5,1797.4,5.97462987]
[1746003016995,0.7968,1797.8,1797.4,7.28158015]
[1746003017609,0.7968,1797.8,1797.4,1.30695028]
[1746003017807,0.31058458,1797.7,1797.3,4.569]
[1746003018191,0.7968,1797.8,1797.4,4.571]
[1746003018520,3.0,1797.9,1797.4,4.571]
[1746003018521,0.759,1798.0,1797.4,4.571]
[1746003018827,0.759,1798.0,1797.5,0.55]
[1746003019222,0.06953189,1797.9,1797.5,0.55]
[1746003019403,0.759,1798.0,1797.5,0.55]
[1746003019607,1.14185319,1798.0,1797.5,0.55]
[1746003020800,0.759,1798.0,1797.5,0.55]
[1746003021309,6.909,1798.0,1797.5,0.55]
[1746003025133,6.909,1798.0,1797.5,1.1145]
[1746003026229,6.15,1798.2,1797.5,4.29294919]
[1746003026630,0.793,1798.3,1797.7,0.55]
[1746003026821,0.793,1798.3,1797.8,4.7]
[1746003027314,3.17844919,1798.0,1797.0,18.358]
[1746003027515,0.06953461,1797.9,1797.3,4.7]
[1746003027843,0.7505,1797.8,1797.3,4.7]
[1746003028150,0.06953509,1797.7,1797.3,4.7]
[1746003028310,0.46938352,1797.7,1797.3,4.7]
[1746003028512,0.39984843,1797.7,1797.3,4.7]
[1746003029213,0.7505,1797.8,1797.3,4.7]
[1746003029711,3.17844919,1797.6,1796.5,0.9690026]
[1746003029911,6.15,1797.5,1796.7,4.701]
[1746003030140,6.15,1797.5,1796.8,0.55]
[1746003031548,6.15,1797.5,1797.0,0.55]
[1746003031736,0.69005,1797.5,1797.0,0.55]
[1746003033528,6.9005,1797.6,1797.0,0.55]
[1746003034609,6.9005,1797.6,1797.0,3.55]
[1746003035117,6.15,1797.6,1797.0,3.55]
[1746003035647,0.31176517,1797.5,1797.0,3.55]
[1746003036646,6.15,1797.6,1797.0,3.55]
[1746003036850,6.15,1797.6,1797.1,0.355]
[1746003038247,6.15,1797.6,1797.2,0.55]
[1746003038450,6.15,1797.6,1797.4,0.55]
[1746003038748,0.7571,1797.8,1797.4,0.55]
[1746003038943,0.51978659,1797.7,1797.4,0.55]
[1746003039314,0.51978671,1797.6,1797.4,0.55]
[1746003039519,0.83166688,1797.6,1797.4,0.55]
[1746003039829,0.51978659,1797.5,1797.4,0.55]
[1746003040449,0.82663632,1797.8,1797.4,0.55]
[1746003040636,1.35167145,1797.5,1797.4,0.55]
[1746003041243,1.35167145,1797.5,1797.3,4.701]
[1746003041551,0.83179981,1797.5,1797.3,4.701]
[1746003041745,0.31192298,1797.4,1797.3,5.251]
[1746003041921,0.31192298,1797.4,1797.3,4.701]
[1746003042127,1.6603111,1797.4,1797.3,4.701]
[1746003042733,2.18018793,1797.4,1797.3,4.701]
[1746003045648,1.03986495,1797.4,1797.3,5.8155]
[1746003045819,1.03986495,1797.4,1797.3,6.39705]
[1746003046021,0.51987683,1797.4,1797.3,6.39705]
[1746003046252,0.8284,1797.7,1797.4,0.55]
[1746003046852,0.83211609,1797.6,1797.4,0.55]
[1746003047243,0.52007293,1797.5,1797.4,0.55]
[1746003047554,1.04014549,1797.5,1797.4,0.55]
[1746003047915,1.35218902,1797.5,1797.4,1.189705]
[1746003048321,0.83211609,1797.5,1797.4,1.189705]
[1746003048552,0.31204353,1797.5,1797.4,1.189705]
[1746003048734,6.9812,1797.9,1797.4,1.189705]
[1746003048941,0.52003847,1797.8,1797.4,1.189705]
[1746003049334,0.52003847,1797.7,1797.4,1.189705]
[1746003049540,0.83206168,1797.7,1797.4,1.189705]
[1746003050157,6.9812,1797.9,1797.4,1.189705]
[1746003050639,0.52002262,1797.8,1797.4,1.189705]
[1746003051154,0.52002262,1797.7,1797.4,1.189705]
[1746003051758,7.67932,1797.9,1797.4,1.189705]
[1746003052263,0.3120104,1797.8,1797.4,1.189705]
[1746003052763,0.3120104,1797.7,1797.4,1.189705]
[1746003053859,6.9812,1797.9,1797.4,1.189705]
[1746003054047,0.51995909,1797.8,1797.4,1.189705]
[1746003054641,0.8312,1797.9,1797.4,1.189705]
[1746003055129,0.31195846,1797.8,1797.4,1.189705]
[1746003056133,0.8312,1797.9,1797.4,1.189705]
[1746003057364,0.52005503,1797.8,1797.4,1.189705]
[1746003057542,0.8312,1797.9,1797.4,1.189705]
[1746003057930,0.3120386,1797.8,1797.4,1.189705]
[1746003058666,0.8312,1797.9,1797.4,1.189705]
[1746003058959,0.520038,1797.8,1797.3,5.2655]
[1746003059350,0.8312,1797.9,1797.4,0.55]
[1746003059552,0.3120312,1797.7,1797.4,0.55]
[1746003059955,0.3120312,1797.7,1797.6,0.55]
[1746003060539,0.8209,1798.1,1797.6,0.55]
[1746003060733,0.52014249,1798.0,1797.7,4.71]
[1746003061137,0.31206964,1797.9,1797.7,4.71]
[1746003062046,1.51799,1798.1,1797.7,4.71]
[1746003062234,0.52012589,1798.0,1797.7,4.71]
[1746003062781,1.51799,1798.1,1797.7,4.71]
[1746003063131,0.52017402,1798.0,1797.7,4.71]
[1746003063336,0.83227821,1798.0,1797.7,4.71]
[1746003063552,0.52017402,1797.9,1797.7,4.71]
[1746003064151,1.51799,1798.1,1797.7,4.71]
[1746003064655,1.58751383,1798.1,1797.7,4.71]
[1746003064942,0.52031529,1798.0,1797.7,4.71]
[1746003065358,0.31218463,1797.9,1797.7,4.71]
[1746003065554,0.52031529,1797.8,1797.7,5.26]
[1746003065937,0.83249992,1797.8,1797.7,5.26]
[1746003066136,0.83249992,1797.8,1797.7,4.71]
[1746003068367,0.83249992,1797.8,1797.7,5.731]
[1746003068584,0.31218463,1797.8,1797.7,9.2955]
[1746003068785,6.15,1798.2,1797.8,0.55]
[1746003068950,0.83236217,1798.1,1797.8,0.55]
[1746003069153,0.83236217,1798.1,1797.9,0.5645]
[1746003069673,0.31213581,1798.1,1797.9,0.5645]
[1746003069870,0.89270925,1798.5,1797.9,0.5645]
[1746003070070,2.60922151,1798.5,1797.9,0.5645]
[1746003070472,0.7623,1798.4,1797.8,0.55]
[1746003070779,0.51987548,1798.3,1797.8,0.55]
[1746003070995,0.7623,1798.2,1797.8,0.55]
[1746003071152,1.61323766,1798.2,1797.8,0.55]
[1746003071552,0.8318095,1798.1,1797.8,0.55]
[1746003071758,0.8318095,1798.1,1797.7,4.71]
[1746003072176,0.51987548,1798.0,1797.8,0.55]
[1746003072491,0.31193402,1797.9,1797.8,0.55]
[1746003073080,0.31193402,1797.9,1797.7,4.71]
[1746003073383,0.31193402,1797.8,1797.7,4.71]
[1746003073592,1.13263402,1797.8,1797.7,4.71]
[1746003073749,1.65288817,1797.8,1797.7,4.71]
[1746003074176,1.13263402,1797.8,1797.7,4.71]
[1746003074376,0.8146,1798.1,1797.7,4.71]
[1746003074889,0.83255859,1798.0,1797.7,4.71]
[1746003075378,0.52034912,1797.9,1797.7,4.71]
[1746003078283,0.83280791,1797.8,1797.7,4.71]
[1746003079978,0.83280791,1797.8,1797.7,6.2955]
[1746003080177,0.31220947,1797.8,1797.7,6.2955]
[1746003080591,0.31220947,1798.1,1797.8,0.55]
[1746003081253,0.7988,1798.3,1797.8,0.55]
[1746003081453,0.7988,1798.3,1797.8,1.17955]
[1746003081985,0.52058406,1798.2,1797.8,1.17955]
[1746003082176,0.7988,1798.3,1797.8,1.17955]
[1746003082903,0.52052378,1798.2,1798.0,0.55]
[1746003083205,0.52052378,1798.2,1798.1,32.93021705]
[1746003083408,0.52052378,1798.2,1798.1,40.07939876]
[1746003083611,6.15,1799.0,1798.4,4.1145]
[1746003083903,1.9989,1799.1,1798.4,4.1145]
[1746003083904,8.1489,1799.1,1798.6,0.55]
[1746003084102,1.9989,1799.1,1798.6,0.55]
[1746003084266,0.31192218,1799.0,1798.6,0.55]
[1746003084599,0.31192218,1799.0,1798.6,1.0759]
[1746003085271,1.9989,1799.1,1798.6,1.0759]
[1746003085989,1.9989,1799.1,1798.6,7.08543625]
[1746003087606,1.1957,1799.1,1798.7,0.5645]
[1746003087807,1.1957,1799.1,1798.8,0.55]
[1746003088110,1.1957,1799.1,1799.0,0.55]
[1746003089803,1.1957,1799.1,1799.0,1.1145]
[1746003095829,1.1957,1799.1,1799.0,4.1145]
[1746003096024,1.1957,1799.1,1799.0,9.67314369]
[1746003096191,1.1957,1799.1,1799.0,28.02914369]
[1746003096519,1.1957,1799.1,1799.0,32.21727569]
[1746003096705,6.15,1799.9,1799.3,4.1145]
[1746003096892,0.7851,1800.0,1799.5,0.55]
[1746003097526,0.7851,1800.0,1799.5,6.47448503]
[1746003097687,0.7851,1800.0,1799.7,0.55]
[1746003097892,0.7851,1800.0,1799.8,4.695]
[1746003098617,0.7851,1800.0,1799.9,5.9231684]
[1746003108355,6.9097,1800.2,1799.9,5.9231684]
[1746003112557,0.31074099,1800.1,1799.9,5.9231684]
[1746003112854,0.31074099,1800.1,1799.9,6.98498524]
[1746003113224,6.9097,1800.2,1799.9,6.98498524]
[1746003115069,0.31095066,1800.1,1799.9,5.9231684]
[1746003115551,0.31095066,1800.0,1799.9,5.9231684]
[1746003116362,0.31095066,1800.1,1799.9,5.9231684]
[1746003116942,0.8233,1800.0,1799.9,5.9231684]
[1746003117261,1.13425066,1800.0,1799.9,5.9231684]
[1746003117665,0.31095066,1800.0,1799.9,6.98498524]
[1746003118368,0.31095066,1800.1,1799.9,6.98498524]
[1746003119135,0.31095066,1800.0,1799.9,6.98498524]
[1746003123059,0.31095066,1800.0,1799.9,7.53498524]
[1746003123660,0.31095066,1800.1,1799.9,7.53498524]
[1746003123861,0.31095066,1800.1,1800.0,0.75349852]
[1746003124366,0.83061766,1800.1,1800.0,0.75349852]
[1746003127377,6.15,1800.9,1800.5,0.55]
[1746003127575,6.9727,1801.0,1800.6,4.666]
[1746003128275,7.66997,1801.0,1800.6,4.666]
[1746003129396,0.7569,1800.9,1800.6,4.666]
[1746003129547,0.82632019,1800.9,1800.6,4.666]
[1746003130877,6.97632019,1800.9,1800.6,4.666]
[1746003132664,6.9069,1800.9,1800.6,4.666]
[1746003133569,6.9069,1800.9,1800.6,5.1326]
[1746003135576,6.15,1801.4,1800.9,1.1145]
[1746003135750,7.439,1801.5,1801.0,4.664]
[1746003135958,7.439,1801.5,1801.0,10.19054881]
[1746003136178,7.439,1801.5,1801.1,0.55]
[1746003136388,7.439,1801.5,1801.1,6.07624196]
[1746003136968,7.439,1801.5,1801.1,5.52624196]
[1746003137578,0.5,1801.5,1801.4,0.55]
[1746003137778,0.5,1801.5,1801.4,5.214]
[1746003138091,0.5,1801.5,1801.4,10.18932164]
[1746003138261,1.2875,1801.5,1801.4,10.18932164]
[1746003139459,0.5,1801.5,1801.4,10.18932164]
[1746003140558,0.5,1801.5,1801.4,11.30382164]
[1746003141596,0.5,1801.5,1801.4,10.75382164]
[1746003142087,0.5,1801.5,1801.4,11.8292038]
[1746003142265,0.5,1801.5,1801.4,7.1652038]
[1746003142464,0.5,1801.5,1801.4,11.8282038]
[1746003143684,0.5,1801.5,1801.4,12.3782038]
[1746003144895,0.5,1801.5,1801.4,7.1652038]
[1746003145102,0.5,1801.5,1801.4,11.2637038]
[1746003145266,0.5,1801.5,1801.4,10.18832164]
[1746003146701,6.15,1801.8,1801.4,10.18832164]
[1746003146867,6.15,1801.8,1801.4,10.13144725]
[1746003147267,6.15,1801.8,1801.5,5.4681437]
[1746003148069,0.82268758,1801.7,1801.5,4.662]
[1746003148282,0.7533,1801.7,1801.5,10.1284753]
[1746003148481,6.15,1801.6,1801.5,10.1284753]
[1746003148803,1.43546943,1801.7,1801.5,4.662]
[1746003158405,0.68216943,1801.7,1801.5,4.662]
[1746003158610,0.68216943,1801.7,1801.5,5.1282]
[1746003158905,0.68216943,1801.7,1801.5,4.662]
[1746003163374,0.31117641,1801.6,1801.5,4.662]
[1746003167911,0.31117641,1801.6,1801.5,5.2265]
[1746003170615,0.68216943,1801.7,1801.5,5.2265]
[1746003172622,0.31201701,1801.6,1801.5,5.2265]
[1746003172802,0.31201701,1801.6,1801.5,5.74915]
[1746003173625,0.68216943,1801.7,1801.5,5.74915]
[1746003180226,0.68216943,1801.7,1801.6,4.685]
[1746003180403,0.99407733,1801.7,1801.6,4.685]
[1746003183623,0.99407733,1801.7,1801.3,0.5645]
[1746003183933,0.99407733,1801.7,1801.4,4.685]
[1746003184649,0.3119079,1801.6,1801.4,4.685]
[1746003185729,0.3119079,1801.5,1801.4,4.685]
[1746003185928,0.99407733,1801.5,1801.4,4.685]
[1746003196110,0.68216943,1801.5,1801.4,4.685]
[1746003197245,0.68216943,1801.5,1801.4,5.2495]
[1746003197539,0.68216943,1801.5,1801.4,6.268]
[1746003204641,0.68216943,1801.5,1801.4,7.98061593]
[1746003206026,0.68216943,1801.5,1801.4,6.268]
[1746003206227,0.68216943,1801.5,1801.4,5.718]
[1746003206441,0.68216943,1801.5,1801.4,7.98061593]
[1746003207656,0.68216943,1801.8,1801.5,0.55]
[1746003207852,0.68216943,1801.8,1801.5,1.40306159]
[1746003208021,0.31192037,1801.7,1801.5,1.40306159]
[1746003208953,0.68216943,1801.8,1801.5,1.40306159]
[1746003210225,0.68216943,1801.8,1801.5,0.85306159]
[1746003210226,1.47436943,1801.8,1801.5,0.85306159]
[1746003210561,0.68216943,1801.8,1801.5,0.85306159]
[1746003215750,0.05,1801.9,1801.6,1.1145]
[1746003216129,0.05,1801.9,1801.7,0.55]
[1746003216460,0.05,1801.9,1801.8,4.661]
[1746003217131,1.54566943,1801.9,1801.8,4.661]
[1746003217828,1.85730456,1801.9,1801.8,4.661]
[1746003219526,1.04380456,1801.9,1801.8,4.661]
[1746003219781,0.73216943,1801.9,1801.8,4.661]
[1746003221768,1.04383749,1801.9,1801.8,4.661]
[1746003226175,1.86183749,1801.9,1801.8,4.661]
[1746003229878,1.04383749,1801.9,1801.3,18.329]
[1746003230190,0.7731,1801.8,1801.5,4.661]
[1746003230691,0.7892,1801.6,1801.5,4.661]
[1746003231547,1.10086806,1801.6,1801.5,4.661]
[1746003232252,1.62050689,1801.6,1801.5,4.661]
[1746003232981,0.83130689,1801.6,1801.5,4.661]
[1746003234282,1.58330689,1801.6,1801.5,4.661]
[1746003235876,1.58330689,1801.6,1801.5,5.1271]
[1746003235877,1.51347632,1801.6,1801.5,5.1271]
[1746003236579,1.20180826,1801.6,1801.5,5.1271]
[1746003238295,1.97240826,1801.6,1801.5,4.661]
[1746003238691,2.28402833,1801.6,1801.5,4.661]
[1746003244089,2.28402833,1801.6,1801.5,4.652583]
[1746003245392,1.51342833,1801.6,1801.5,4.652583]
[1746003246193,1.20180826,1801.6,1801.5,4.652583]
[1746003248516,1.20180826,1801.6,1801.5,5.217083]
[1746003253798,1.51360486,1801.6,1801.5,5.217083]
[1746003253998,1.51360486,1801.6,1801.5,4.652583]
[1746003254430,1.20180826,1801.6,1801.5,4.652583]
[1746003257842,1.51371281,1801.6,1801.5,4.652583]
[1746003259130,1.20180826,1801.6,1801.5,4.652583]
[1746003259936,2.00150826,1801.6,1801.5,4.652583]
[1746003260647,2.31349557,1801.6,1801.5,4.652583]
[1746003261435,2.31349557,1801.6,1801.0,18.329]
[1746003261436,0.8326,1801.5,1801.0,18.329]
[1746003261736,0.8326,1801.3,1801.2,4.668]
[1746003262651,0.83162614,1801.3,1801.2,4.668]
[1746003263357,0.8326,1800.9,1800.0,5.93972629]
[1746003263515,1.71261593,1800.3,1800.0,5.93972629]
[1746003263716,0.8326,1800.1,1800.0,5.93972629]
[1746003264251,0.68216943,1800.2,1800.0,5.93972629]
[1746003266540,0.68216943,1800.2,1799.9,4.669]
[1746003273470,0.68216943,1800.2,1800.0,0.5645]
[1746003275542,0.68216943,1800.2,1799.4,6.32012221]
[1746003275543,1.50800758,1800.1,1799.6,4.701]
[1746003275748,1.83006993,1800.1,1799.6,4.701]
[1746003278269,1.76063178,1800.1,1799.6,4.701]
[1746003278471,1.76063178,1800.1,1799.1,5.98496832]
[1746003278472,0.7628,1799.6,1798.8,4.701]
[1746003278688,0.7628,1799.2,1798.8,4.701]
[1746003278893,0.68216943,1799.1,1798.8,4.701]
[1746003279051,2.39478536,1799.1,1798.8,4.701]
[1746003279647,0.68216943,1799.1,1798.8,4.701]
[1746003280586,0.68216943,1799.1,1798.8,5.1711]
[1746003281383,0.68216943,1799.1,1798.9,0.55]
[1746003282354,1.56944505,1799.0,1798.4,4.703]
[1746003282709,1.49996943,1799.0,1798.5,0.55]
[1746003282862,1.89071796,1799.0,1798.5,0.55]
[1746003283861,4.82122797,1799.0,1798.5,0.55]
[1746003286113,4.49996943,1799.0,1798.5,0.55]
[1746003286421,1.49996943,1799.0,1798.5,0.55]
[1746003289597,1.49996943,1799.0,1798.6,0.5645]
[1746003289796,0.68216943,1799.0,1798.6,2.27711593]
[1746003290006,0.68216943,1799.0,1798.6,0.5645]
[1746003291610,0.68216943,1799.0,1798.7,0.55]
[1746003291790,0.68216943,1799.0,1798.6,0.5645]
[1746003291791,0.68216943,1799.0,1798.9,0.55]
[1746003292612,0.68216943,1799.0,1798.8,4.705]
[1746003300725,0.68216943,1799.0,1798.9,0.55]
[1746003300908,0.68216943,1799.0,1798.9,1.0755]
[1746003301429,0.8089,1799.4,1798.9,1.64]
[1746003302021,0.51688505,1799.3,1798.9,1.64]
[1746003303098,0.8089,1799.4,1798.9,1.64]
[1746003305406,0.31102543,1799.3,1798.9,1.64]
[1746003305712,0.51840372,1799.2,1798.9,1.64]
[1746003306638,0.8089,1799.4,1798.9,1.64]
[1746003307351,0.5190284,1799.3,1798.9,1.64]
[1746003307906,0.8089,1799.4,1798.9,1.64]
[1746003308628,0.51942715,1799.3,1798.9,1.64]
[1746003308819,0.31165636,1799.2,1798.9,1.64]
[1746003309220,0.31165636,1799.2,1798.5,3.0]
[1746003309221,0.7619,1798.9,1797.5,0.27908]
[1746003309458,0.7619,1798.9,1797.3,5.93972629]
[1746003309459,0.7619,1798.2,1797.3,5.93972629]
[1746003309608,0.51942715,1798.1,1797.3,5.93972629]
[1746003309954,0.31165636,1798.0,1797.6,4.705]
[1746003310236,0.31165636,1798.0,1797.7,0.55]
[1746003310407,0.51942715,1797.9,1797.7,0.55]
[1746003310733,0.51942715,1797.8,1797.7,0.55]
[1746003311328,0.51942715,1797.8,1797.7,4.706]
[1746003311516,0.51942715,1797.8,1797.7,5.256]